fUSD/lending_fUSD_20250521
["ID","MTS","AMOUNT","RATE_DAILY","PERIOD"]
[361821874,1747823601707,-543.38,0.00036164,5]
[361821875,1747823601717,-1884.88,0.00036164,5]
[361821876,1747823601728,-443.39,0.00036164,5]
[361821877,1747823601739,-814.52,0.00036164,5]
[361821878,1747823601749,-420.0,0.00036164,5]
[361821879,1747823601759,-468.75,0.00036164,5]
[361821880,1747823601770,-2280.59,0.00036164,5]
[361821881,1747823601780,-420.0,0.00036164,5]
[361821882,1747823601791,-420.0,0.00036164,5]
[361821883,1747823601801,-1660.08,0.00036164,5]
[361821884,1747823601811,-420.0,0.00036164,5]
[361821885,1747823601821,-420.0,0.00036164,5]
[361821886,1747823601832,-2531.44,0.00036164,5]
[361821887,1747823601842,-891.37,0.00036164,5]
[361821888,1747823601853,-1229.28,0.00036164,5]
[361821889,1747823601863,-420.0,0.00036164,5]
[361821890,1747823601874,-562.73,0.00036164,5]
[361821891,1747823601884,-420.0,0.00036164,5]
[361821892,1747823601894,-639.64,0.00036164,5]
[361821893,1747823601903,-1520.14,0.00036164,5]
[361821894,1747823601914,-420.0,0.00036164,5]
[361821895,1747823601924,-2002.78,0.00036164,5]
[361821896,1747823601934,-504.03,0.00036164,5]
[361821897,1747823601944,-420.0,0.00036164,5]
[361821898,1747823601953,-420.0,0.00036164,5]
[361821899,1747823601964,-756.35,0.00036164,5]
[361821900,1747823601974,-1155.6,0.00036164,5]
[361821901,1747823601984,-2487.3,0.00036164,5]
[361821902,1747823601994,-829.63,0.00036164,5]
[361821903,1747823602005,-440.4,0.00036164,5]
[361821904,1747823602015,-420.0,0.00036164,5]
[361821905,1747823602025,-420.0,0.00036164,5]
[361821906,1747823602035,-1069.06,0.00036164,5]
[361821907,1747823602046,-512.22,0.00036164,5]
[361821908,1747823602056,-1131.24,0.00036164,5]
[361821909,1747823602066,-3548.27,0.00036164,5]
[361821910,1747823602077,-531.37,0.00036164,5]
[361821911,1747823602087,-337.84166565,0.00036164,5]
[361821912,1747823602097,-438.38,0.00036164,5]
[361821913,1747823602107,-420.0,0.00036164,5]
[361821914,1747823602117,-836.66,0.00036164,5]
[361821915,1747823602128,-1758.59,0.00036164,5]
[361821916,1747823602138,-2244.73,0.00036164,5]
[361821917,1747823602149,-706.99,0.00036164,5]
[361821918,1747823602161,-1671.68,0.00036164,5]
[361821919,1747823602171,-1303.3,0.00036164,5]
[361821920,1747823602182,-630.7,0.00036164,5]
[361821921,1747823602192,-1546.03,0.00036164,5]
[361821922,1747823602203,-1449.1,0.00036164,5]
[361821923,1747823602212,-1084.11,0.00036164,5]
[361821924,1747823602222,-796.16,0.00036164,5]
[361821925,1747823602232,-829.47,0.00036164,5]
[361821926,1747823602241,-560.22,0.00036164,5]
[361821927,1747823602251,-2061.87,0.00036164,5]
[361821928,1747823602261,-1759.24,0.00036164,5]
[361821929,1747823602270,-677.92,0.00036164,5]
[361821930,1747823602280,-420.0,0.00036164,5]
[361821931,1747823602289,-2008.9,0.00036164,5]
[361821932,1747823602299,-420.0,0.00036164,5]
[361821933,1747823602309,-603.25,0.00036164,5]
[361821934,1747823602319,-420.0,0.00036164,5]
[361821935,1747823602330,-3335.62,0.00036164,5]
[361821936,1747823602340,-794.93,0.00036164,5]
[361821937,1747823602350,-462.11,0.00036164,5]
[361821938,1747823602360,-1384.78,0.00036164,5]
[361821939,1747823602371,-3088.45,0.00036164,5]
[361821940,1747823602385,-3415.98,0.00036164,5]
[361821941,1747823602395,-475.97,0.00036164,5]
[361821942,1747823602405,-420.0,0.00036164,5]
[361821943,1747823602415,-1441.04,0.00036164,5]
[361821944,1747823602427,-1360.17,0.00036164,5]
[361821945,1747823602436,-799.95,0.00036164,5]
[361821946,1747823602447,-1022.16,0.00036164,5]
[361821947,1747823602458,-2905.57,0.00036164,5]
[361821948,1747823602468,-420.0,0.00036164,5]
[361821949,1747823602479,-2154.53,0.00036164,5]
[361821950,1747823602489,-1412.77,0.00036164,5]
[361821951,1747823602499,-420.0,0.00036164,5]
[361821952,1747823602509,-1804.92,0.00036164,5]
[361821953,1747823602519,-931.82,0.00036164,5]
[361821954,1747823602530,-3820.81,0.00036164,5]
[361821955,1747823602541,-420.0,0.00036164,5]
[361821956,1747823602552,-446.52,0.00036164,5]
[361821957,1747823602563,-420.0,0.00036164,5]
[361821958,1747823602573,-3379.22,0.00036164,5]
[361821959,1747823602584,-552.29,0.00036164,5]
[361821960,1747823602594,-183.76283,0.00036164,5]
[361821961,1747823602605,-2204.62,0.00036164,5]
[361821962,1747823602615,-1365.61,0.00036164,5]
[361821963,1747823602625,-739.98,0.00036164,5]
[361821964,1747823602635,-1686.16,0.00036164,5]
[361821965,1747823602645,-638.15,0.00036164,5]
[361821966,1747823602655,-2851.0,0.00036164,5]
[361821967,1747823602665,-420.0,0.00036164,5]
[361821968,1747823602675,-641.93,0.00036164,5]
[361821969,1747823602684,-669.03,0.00036164,5]
[361821970,1747823602693,-1513.514558,0.00036164,5]
[361821971,1747823602704,-1056.24,0.00036164,5]
[361821972,1747823602714,-605.2,0.00036164,5]
[361821973,1747823602724,-3414.72,0.00036164,5]
[361821974,1747823602734,-456.44,0.00036164,5]
[361821975,1747823602744,-2738.58,0.00036164,5]
[361821976,1747823602754,-626.72,0.00036164,5]
[361821977,1747823602764,-1961.22,0.00036164,5]
[361821978,1747823602774,-4019.16,0.00036164,5]
[361821979,1747823602784,-420.0,0.00036164,5]
[361821980,1747823602794,-420.0,0.00036164,5]
[361821981,1747823602804,-288.84307437,0.00036164,5]
[361821982,1747823602814,-501.19,0.00036164,5]
[361821983,1747823602825,-437.02,0.00036164,5]
[361821984,1747823602835,-420.0,0.00036164,5]
[361821985,1747823602845,-3829.73,0.00036164,5]
[361821986,1747823602855,-1195.86,0.00036164,5]
[361821987,1747823602865,-1171.35,0.00036164,5]
[361821988,1747823602875,-1602.68,0.00036164,5]
[361821989,1747823602885,-1595.56,0.00036164,5]
[361821990,1747823602895,-1403.63,0.00036164,5]
[361821991,1747823602907,-420.0,0.00036164,5]
[361821992,1747823602917,-2127.07,0.00036164,5]
[361821993,1747823602927,-1620.22,0.00036164,5]
[361821994,1747823602937,-975.42,0.00036164,5]
[361821995,1747823602946,-663.27,0.00036164,5]
[361821996,1747823602958,-4718.07,0.00036164,5]
[361821997,1747823602968,-1651.18,0.00036164,5]
[361821998,1747823602978,-154.385502,0.00036164,5]
[361821999,1747823602988,-560.95,0.00036164,5]
[361822000,1747823602998,-701.41,0.00036164,5]
[361822001,1747823603008,-950.44,0.00036164,5]
[361822002,1747823603018,-420.0,0.00036164,5]
[361822003,1747823603028,-708.42,0.00036164,5]
[361822004,1747823603038,-3358.3,0.00036164,5]
[361822005,1747823603047,-420.0,0.00036164,5]
[361822006,1747823603057,-1131.94,0.00036164,5]
[361822007,1747823603068,-3071.77,0.00036164,5]
[361822008,1747823603078,-1890.69,0.00036164,5]
[361822009,1747823603088,-2588.8,0.00036164,5]
[361822010,1747823603098,-1081.97,0.00036164,5]
[361822011,1747823603109,-447.09,0.00036164,5]
[361822012,1747823603119,-1061.79,0.00036164,5]
[361822013,1747823603129,-3165.26,0.00036164,5]
[361822014,1747823603139,-1578.73,0.00036164,5]
[361822015,1747823603149,-420.0,0.00036164,5]
[361822016,1747823603159,-437.54,0.00036164,5]
[361822017,1747823603170,-801.31,0.00036164,5]
[361822018,1747823603180,-1117.87,0.00036164,5]
[361822019,1747823603190,-528.93363383,0.00036164,5]
[361822020,1747823603201,-590.41,0.00036164,5]
[361822021,1747823603211,-646.24,0.00036164,5]
[361822022,1747823603221,-469.33,0.00036164,5]
[361822023,1747823603231,-1582.05,0.00036164,5]
[361822024,1747823603242,-944.65,0.00036164,5]
[361822025,1747823603252,-1388.27,0.00036164,5]
[361822026,1747823603262,-420.0,0.00036164,5]
[361822027,1747823603272,-363.25836095,0.00036164,5]
[361822028,1747823603543,-817.62,0.00036164,5]
[361822029,1747823603566,-1313.42,0.00036164,5]
[361822030,1747823603577,-2499.18,0.00036164,5]
[361822031,1747823603588,-2712.821305,0.00036164,5]
[361822032,1747823603597,-420.0,0.00036164,5]
[361822033,1747823603607,-591.99,0.00036164,5]
[361822034,1747823603618,-420.0,0.00036164,5]
[361822035,1747823603628,-2676.06,0.00036164,5]
[361822036,1747823603639,-420.0,0.00036164,5]
[361822037,1747823603649,-420.0,0.00036164,5]
[361822038,1747823603658,-1630.17,0.00036164,5]
[361822039,1747823603668,-2046.62,0.00036164,5]
[361822040,1747823603678,-707.44,0.00036164,5]
[361822041,1747823603688,-420.0,0.00036164,5]
[361822042,1747823603699,-524.92,0.00036164,5]
[361822043,1747823603709,-844.05,0.00036164,5]
[361822044,1747823603719,-2122.24,0.00036164,5]
[361822045,1747823603729,-603.94,0.00036164,5]
[361822046,1747823603740,-5021.23,0.00036164,5]
[361822047,1747823603750,-1529.49,0.00036164,5]
[361822048,1747823603760,-1250.7,0.00036164,5]
[361822049,1747823603769,-420.0,0.00036164,5]
[361822050,1747823603780,-1682.48,0.00036164,5]
[361822051,1747823603790,-1386.81,0.00036164,5]
[361822052,1747823603801,-730.49,0.00036164,5]
[361822053,1747823603811,-488.74606821,0.00036164,5]
[361822054,1747823603821,-447.9,0.00036164,5]
[361822055,1747823603831,-1324.88,0.00036164,5]
[361822056,1747823603841,-2229.66,0.00036164,5]
[361822057,1747823603852,-472.1,0.00036164,5]
[361822058,1747823603862,-434.93,0.00036164,5]
[361822059,1747823603872,-420.0,0.00036164,5]
[361822060,1747823603883,-1282.33,0.00036164,5]
[361822061,1747823603894,-444.34,0.00036164,5]
[361822062,1747823603904,-2643.47,0.00036164,5]
[361822063,1747823603915,-1343.09,0.00036164,5]
[361822064,1747823603925,-600.65,0.00036164,5]
[361822065,1747823603935,-1076.93,0.00036164,5]
[361822066,1747823603945,-1416.84,0.00036164,5]
[361822067,1747823603956,-1332.5,0.00036164,5]
[361822068,1747823603966,-1392.97,0.00036164,5]
[361822069,1747823603975,-682.19,0.00036164,5]
[361822070,1747823603985,-438.34,0.00036164,5]
[361822071,1747823603996,-791.4,0.00036164,5]
[361822072,1747823604006,-1000.0,0.00036164,30]
[361822073,1747823604016,-632.83,0.00036164,5]
[361822074,1747823604026,-713.78,0.00036164,5]
[361822075,1747823604037,-2568.63,0.00036164,5]
[361822076,1747823604046,-420.0,0.00036164,5]
[361822077,1747823604057,-1222.57,0.00036164,5]
[361822078,1747823604067,-420.0,0.00036164,5]
[361822079,1747823604077,-1185.11,0.00036164,5]
[361822080,1747823604086,-191.82305869,0.00036164,5]
[361822081,1747823604096,-3400.95,0.00036164,5]
[361822082,1747823604106,-618.99,0.00036164,5]
[361822083,1747823604116,-559.3,0.00036164,5]
[361822084,1747823604126,-2592.87,0.00036164,5]
[361822085,1747823604136,-729.48,0.00036164,5]
[361822086,1747823604147,-1036.77,0.00036164,5]
[361822087,1747823604157,-912.69,0.00036164,5]
[361822088,1747823604167,-2077.17,0.00036164,5]
[361822089,1747823604177,-474.23,0.00036164,5]
[361822090,1747823604187,-633.02,0.00036164,5]
[361822091,1747823604197,-2143.32,0.00036164,5]
[361822092,1747823604208,-2433.64,0.00036164,5]
[361822093,1747823604219,-680.33,0.00036164,5]
[361822094,1747823604229,-2156.45,0.00036164,5]
[361822095,1747823604239,-1587.63,0.00036164,5]
[361822096,1747823604250,-506.29373553,0.00036164,5]
[361822097,1747823604261,-3338.68,0.00036164,5]
[361822098,1747823604271,-2132.67,0.00036164,5]
[361822099,1747823604281,-539.66,0.00036164,5]
[361822100,1747823604292,-1108.21,0.00036164,5]
[361822101,1747823604304,-194.56312861,0.00036164,5]
[361822102,1747823604315,-1448.56,0.00036164,5]
[361822103,1747823604326,-420.0,0.00036164,5]
[361822104,1747823604338,-1231.09,0.00036164,5]
[361822105,1747823604349,-1449.81,0.00036164,5]
[361822106,1747823604359,-420.0,0.00036164,5]
[361822107,1747823604370,-2507.82,0.00036164,5]
[361822108,1747823604384,-461.55,0.00036164,5]
[361822109,1747823604394,-2269.59,0.00036164,5]
[361822110,1747823604404,-3289.43,0.00036164,5]
[361822111,1747823604414,-1017.25,0.00036164,5]
[361822112,1747823604426,-1196.46,0.00036164,5]
[361822113,1747823604436,-420.0,0.00036164,5]
[361822114,1747823604445,-1902.38,0.00036164,5]
[361822115,1747823604457,-4528.11,0.00036164,5]
[361822116,1747823604468,-437.58,0.00036164,5]
[361822117,1747823604478,-2709.01,0.00036164,5]
[361822118,1747823604488,-934.68,0.00036164,5]
[361822119,1747823604498,-644.31,0.00036164,5]
[361822120,1747823604508,-3000.52,0.00036164,5]
[361822121,1747823604519,-2558.61,0.00036164,5]
[361822122,1747823604529,-919.21,0.00036164,5]
[361822123,1747823604540,-380.94067263,0.00036164,5]
[361822124,1747823604551,-3800.75,0.00036164,5]
[361822125,1747823604561,-1016.83,0.00036164,5]
[361822126,1747823604572,-1283.86,0.00036164,5]
[361822127,1747823604583,-5012.54,0.00036164,5]
[361822128,1747823604594,-4257.36,0.00036164,5]
[361822129,1747823604605,-420.0,0.00036164,5]
[361822130,1747823604617,-420.0,0.00036164,5]
[361822131,1747823604628,-2661.46,0.00036164,5]
[361822132,1747823604637,-420.0,0.00036164,5]
[361822133,1747823604647,-435.3081153,0.00036164,5]
[361822134,1747823604657,-7175.57,0.00036164,5]
[361822135,1747823604668,-1626.84,0.00036164,5]
[361822136,1747823604679,-7478.95,0.00036164,5]
[361822137,1747823604689,-1297.42,0.00036164,5]
[361822138,1747823604699,-1050.66,0.00036164,5]
[361822139,1747823604709,-459.54,0.00036164,5]
[361822140,1747823604720,-3186.22,0.00036164,5]
[361822141,1747823604729,-1603.59,0.00036164,5]
[361822142,1747823604739,-1706.72,0.00036164,5]
[361822143,1747823604749,-1118.07,0.00036164,5]
[361822144,1747823604759,-3456.53,0.00036164,5]
[361822145,1747823604770,-1819.17,0.00036164,5]
[361822146,1747823604780,-477.62,0.00036164,5]
[361822147,1747823604791,-500.47,0.00036164,5]
[361822148,1747823604802,-1245.18,0.00036164,5]
[361822149,1747823604812,-864.67,0.00036164,5]
[361822150,1747823604822,-1044.28,0.00036164,5]
[361822151,1747823604832,-485.82,0.00036164,5]
[361822152,1747823604842,-483.53,0.00036164,5]
[361822153,1747823604852,-2279.99,0.00036164,5]
[361822154,1747823604862,-1093.42,0.00036164,5]
[361822155,1747823604871,-773.61,0.00036164,5]
[361822156,1747823604883,-1587.6,0.00036164,5]
[361822157,1747823604893,-2000.0,0.00036164,5]
[361822158,1747823604903,-3023.35,0.00036164,5]
[361822159,1747823604913,-2681.61,0.00036164,5]
[361822160,1747823604923,-448.53771069,0.00036164,5]
[361822161,1747823604933,-3921.51,0.00036164,5]
[361822162,1747823604943,-774.74,0.00036164,5]
[361822163,1747823604953,-11832.32,0.00036164,5]
[361822164,1747823604963,-1140.49,0.00036164,5]
[361822165,1747823604973,-716.85,0.00036164,5]
[361822166,1747823604983,-1451.14,0.00036164,5]
[361822167,1747823604993,-1980.16,0.00036164,5]
[361822168,1747823605003,-4169.63,0.00036164,5]
[361822169,1747823605012,-614.3,0.00036164,5]
[361822170,1747823605022,-1064.83,0.00036164,5]
[361822171,1747823605031,-478.74,0.00036164,5]
[361822172,1747823605042,-1031.8,0.00036164,5]
[361822173,1747823605052,-2328.19,0.00036164,5]
[361822174,1747823605062,-2178.09,0.00036164,5]
[361822175,1747823605072,-595.22,0.00036164,5]
[361822176,1747823605083,-420.0,0.00036164,5]
[361822177,1747823605094,-12779.36,0.00036164,5]
[361822178,1747823605104,-3199.69,0.00036164,5]
[361822179,1747823605114,-464.93,0.00036164,5]
[361822180,1747823605125,-1385.93,0.00036164,5]
[361822181,1747823605135,-3624.48,0.00036164,5]
[361822182,1747823605144,-1592.89,0.00036164,5]
[361822183,1747823605155,-420.0,0.00036164,5]
[361822184,1747823605167,-420.0,0.00036164,5]
[361822185,1747823605176,-3239.25,0.00036164,5]
[361822186,1747823605186,-353.90963519,0.00036164,5]
[361822187,1747823605197,-4626.37,0.00036164,5]
[361822188,1747823605207,-1377.38,0.00036164,5]
[361822189,1747823605216,-613.45,0.00036164,5]
[361822190,1747823605228,-2100.46,0.00036164,5]
[361822191,1747823605240,-232873.01,0.00036164,5]
[361822192,1747823605249,-358.43159855,0.00036164,5]
[361822193,1747823605259,-2870.6,0.00036164,5]
[361822194,1747823605269,-420.0,0.00036164,5]
[361822195,1747823605280,-420.0,0.00036164,5]
[361822196,1747823605292,-544.44,0.00036164,5]
[361822197,1747823605302,-2582.79,0.00036164,5]
[361822198,1747823605311,-1455.85,0.00036164,5]
[361822199,1747823605322,-3817.8,0.00036164,5]
[361822200,1747823605332,-1140.2,0.00036164,5]
[361822201,1747823605342,-814.19,0.00036164,5]
[361822202,1747823605352,-1001.8,0.00036164,5]
[361822203,1747823605362,-24741.12,0.00036164,5]
[361822204,1747823605372,-746.18,0.00036164,5]
[361822205,1747823605384,-1332.61,0.00036164,5]
[361822206,1747823605395,-847.4,0.00036164,5]
[361822207,1747823605405,-6653.58,0.00036164,5]
[361822208,1747823605414,-2208.36,0.00036164,5]
[361822209,1747823605424,-3466.92,0.00036164,5]
[361822210,1747823605435,-756.27,0.00036164,5]
[361822211,1747823605445,-2780.98,0.00036164,5]
[361822212,1747823605456,-3727.2,0.00036164,5]
[361822213,1747823605469,-43430.9,0.00036164,5]
[361822214,1747823605481,-4377.12,0.00036164,5]
[361822215,1747823605492,-662.42,0.00036164,5]
[361822216,1747823605501,-1355.36,0.00036164,5]
[361822217,1747823605511,-1646.2,0.00036164,5]
[361822218,1747823605521,-420.0,0.00036164,5]
[361822219,1747823605530,-3823.68,0.00036164,5]
[361822220,1747823605540,-420.0,0.00036164,5]
[361822221,1747823605550,-1929.18,0.00036164,5]
[361822222,1747823605559,-692.1,0.00036164,5]
[361822223,1747823605569,-1375.19,0.00036164,5]
[361822224,1747823605581,-27430.46,0.00036164,5]
[361822225,1747823605590,-694.13,0.00036164,5]
[361822226,1747823605599,-1035.87,0.00036164,5]
[361822227,1747823605610,-8392.23,0.00036164,5]
[361822228,1747823605620,-3873.45,0.00036164,5]
[361822229,1747823605630,-2620.97,0.00036164,5]
[361822230,1747823605640,-831.34,0.00036164,5]
[361822231,1747823605649,-683.8,0.00036164,5]
[361822232,1747823605659,-420.0,0.00036164,5]
[361822233,1747823605669,-2236.59,0.00036164,5]
[361822234,1747823605678,-551.86417576,0.00036164,5]
[361822235,1747823605690,-333.94,0.00036164,5]
[361822236,1747823605701,-862.9,0.00036164,5]
[361822237,1747823605711,-648.18,0.00036164,5]
[361822238,1747823605721,-2431.99,0.00036164,5]
[361822239,1747823605731,-2055.72,0.00036164,5]
[361822240,1747823605741,-30819.65,0.00036164,5]
[361822241,1747823605754,-426.36,0.00036164,5]
[361822242,1747823605764,-420.0,0.00036164,5]
[361822243,1747823605774,-3529.5,0.00036164,5]
[361822244,1747823605784,-420.0,0.00036164,5]
[361822245,1747823605794,-507.94,0.00036164,5]
[361822246,1747823605804,-7158.91,0.00036164,5]
[361822247,1747823605814,-1372.96,0.00036164,5]
[361822248,1747823605824,-11263.62,0.00036164,5]
[361822249,1747823605834,-10218.82,0.00036164,5]
[361822250,1747823605844,-1395.97,0.00036164,5]
[361822251,1747823605854,-11955.57,0.00036164,5]
[361822252,1747823605863,-420.0,0.00036164,5]
[361822253,1747823606242,-903.34,0.00036164,5]
[361822254,1747823606256,-4237.43,0.00036164,5]
[361822255,1747823606266,-1156.02,0.00036164,5]
[361822256,1747823606277,-1250.1,0.00036164,5]
[361822257,1747823606288,-1940.56,0.00036164,5]
[361822258,1747823606299,-1535.0,0.00036164,5]
[361822259,1747823606309,-2611.65,0.00036164,5]
[361822260,1747823606319,-2088.87,0.00036164,5]
[361822261,1747823606328,-604.9,0.00036164,5]
[361822262,1747823606339,-436.47,0.00036164,5]
[361822263,1747823606351,-3994.4,0.00036164,5]
[361822264,1747823606362,-512.59,0.00036164,5]
[361822265,1747823606372,-4967.59,0.00036164,5]
[361822266,1747823606386,-997.3,0.00036164,5]
[361822267,1747823606396,-420.0,0.00036164,5]
[361822268,1747823606406,-2461.55,0.00036164,5]
[361822269,1747823606416,-420.0,0.00036164,5]
[361822270,1747823606428,-3960.15,0.00036164,5]
[361822271,1747823606438,-2650.09,0.00036164,5]
[361822272,1747823606448,-1029.17,0.00036164,5]
[361822273,1747823606460,-2763.51,0.00036164,5]
[361822274,1747823606470,-655.48,0.00036164,5]
[361822275,1747823606480,-6358.26,0.00036164,5]
[361822276,1747823606491,-3823.46,0.00036164,5]
[361822277,1747823606500,-420.0,0.00036164,5]
[361822278,1747823606511,-420.0,0.00036164,5]
[361822279,1747823606521,-420.0,0.00036164,5]
[361822280,1747823606533,-299.21931915,0.00036164,5]
[361822281,1747823606544,-2138.94,0.00036164,5]
[361822282,1747823606554,-3514.65,0.00036164,5]
[361822283,1747823606563,-578.47,0.00036164,5]
[361822284,1747823606573,-420.0,0.00036164,5]
[361822285,1747823606583,-1778.66,0.00036164,5]
[361822286,1747823606593,-7467.95,0.00036164,5]
[361822287,1747823606603,-4923.96,0.00036164,5]
[361822288,1747823606614,-420.87,0.00036164,5]
[361822289,1747823606626,-420.0,0.00036164,5]
[361822290,1747823606636,-1388.95,0.00036164,5]
[361822291,1747823606646,-1642.25,0.00036164,5]
[361822292,1747823606658,-15894.82,0.00036164,5]
[361822293,1747823606669,-7928.56,0.00036164,5]
[361822294,1747823606680,-3648.84,0.00036164,5]
[361822295,1747823606691,-535.54,0.00036164,5]
[361822296,1747823606702,-420.0,0.00036164,5]
[361822297,1747823606712,-18415.06,0.00036164,5]
[361822298,1747823606723,-420.0,0.00036164,5]
[361822299,1747823606733,-584.64,0.00036164,5]
[361822300,1747823606743,-420.0,0.00036164,5]
[361822301,1747823606754,-1096.3,0.00036164,5]
[361822302,1747823606763,-2111.71,0.00036164,5]
[361822303,1747823606774,-2534.37,0.00036164,5]
[361822304,1747823606784,-420.0,0.00036164,5]
[361822305,1747823606795,-2727.38,0.00036164,5]
[361822306,1747823606806,-481.82,0.00036164,5]
[361822307,1747823606816,-4064.18,0.00036164,5]
[361822308,1747823606826,-1605.11,0.00036164,5]
[361822309,1747823606837,-583.63,0.00036164,5]
[361822310,1747823606847,-420.0,0.00036164,5]
[361822311,1747823606858,-2791.01,0.00036164,5]
[361822312,1747823606868,-3277.38,0.00036164,5]
[361822313,1747823606879,-1946.19,0.00036164,5]
[361822314,1747823606891,-4162.95,0.00036164,5]
[361822315,1747823606902,-486.64,0.00036164,5]
[361822316,1747823606914,-1793.09,0.00036164,5]
[361822317,1747823606925,-2365.3,0.00036164,5]
[361822318,1747823606935,-5030.39,0.00036164,5]
[361822319,1747823606946,-1065.78,0.00036164,5]
[361822320,1747823606956,-5351.26,0.00036164,5]
[361822321,1747823606966,-8618.58,0.00036164,5]
[361822322,1747823606976,-420.0,0.00036164,5]
[361822323,1747823606987,-853.5,0.00036164,5]
[361822324,1747823606998,-1488.03,0.00036164,5]
[361822325,1747823607008,-5387.66,0.00036164,5]
[361822326,1747823607019,-4366.01,0.00036164,5]
[361822327,1747823607029,-1284.33,0.00036164,5]
[361822328,1747823607040,-552.70464496,0.00036164,5]
[361822329,1747823607050,-3564.21,0.00036164,5]
[361822330,1747823607059,-420.0,0.00036164,5]
[361822331,1747823607070,-643.95,0.00036164,5]
[361822332,1747823607080,-11304.41,0.00036164,5]
[361822333,1747823607091,-751.7,0.00036164,5]
[361822334,1747823607101,-873.4,0.00036164,5]
[361822335,1747823607111,-1096.95,0.00036164,5]
[361822336,1747823607122,-441.74,0.00036164,5]
[361822337,1747823607133,-781.82,0.00036164,5]
[361822338,1747823607144,-420.0,0.00036164,5]
[361822339,1747823607154,-871.43,0.00036164,5]
[361822340,1747823607164,-778.01,0.00036164,5]
[361822341,1747823607174,-3424.15,0.00036164,5]
[361822342,1747823607185,-6336.25,0.00036164,5]
[361822343,1747823607195,-420.0,0.00036164,5]
[361822344,1747823607205,-575.11,0.00036164,5]
[361822345,1747823607217,-2227.33,0.00036164,5]
[361822346,1747823607226,-469.12,0.00036164,5]
[361822347,1747823607238,-2778.38,0.00036164,5]
[361822348,1747823607249,-5264.38,0.00036164,5]
[361822349,1747823607259,-2282.35,0.00036164,5]
[361822350,1747823607269,-420.0,0.00036164,5]
[361822351,1747823607279,-2508.06,0.00036164,5]
[361822352,1747823607290,-477.54,0.00036164,5]
[361822353,1747823607300,-420.0,0.00036164,5]
[361822354,1747823607310,-45711.39,0.00036164,5]
[361822355,1747823607320,-1438.01,0.00036164,5]
[361822356,1747823607330,-420.0,0.00036164,5]
[361822357,1747823607343,-420.0,0.00036164,5]
[361822358,1747823607354,-492.73,0.00036164,5]
[361822359,1747823607365,-2994.99,0.00036164,5]
[361822360,1747823607375,-845.16,0.00036164,5]
[361822361,1747823607388,-2847.74,0.00036164,5]
[361822362,1747823607398,-7033.02,0.00036164,5]
[361822363,1747823607408,-20631.06,0.00036164,5]
[361822364,1747823607419,-1653.01,0.00036164,5]
[361822365,1747823607430,-440.6,0.00036164,5]
[361822366,1747823607440,-480.69,0.00036164,5]
[361822367,1747823607451,-908.75,0.00036164,5]
[361822368,1747823607462,-420.0,0.00036164,5]
[361822369,1747823607472,-420.0,0.00036164,5]
[361822370,1747823607482,-1811.64,0.00036164,5]
[361822371,1747823607492,-1675.59,0.00036164,5]
[361822372,1747823607502,-1341.01,0.00036164,5]
[361822373,1747823607512,-1620.28,0.00036164,5]